Cogmind - Beta 13 *** ADVENTURER MODE // 2024.04.07 @ 13:03:12 // Winter2019/RPGLIKE Player: Shalashalska Result: Destroyed by D-53 Grenadier with Mini Grenade Launcher Performance ------------- Evolutions (0) 0 Regions Visited (2) 400 Robots Destroyed (29) 145 Value Destroyed (565) 565 Prototype IDs (2) 40 Alien Tech Used (0) 0 Bonus (0) 0 TOTAL SCORE: 1150 Bonus ------- None Cogmind --------- Core Integrity 0/600 Matter 300/300 Energy 100/100 System Corruption 1% Temperature Cool (0) Movement Core (50) Location -10/Mines Parts ------- > --- POWER (1) -------- (None) > --- PROPULSION (2) --- (None) > --- UTILITY (2) ------ Signal Interpreter Improved Targeting Computer > --- WEAPON (2) ------- Particle Gun Plasma Cutter > --- INVENTORY (2) ---- Terrain Scanner Datajack Peak State ------------ > --- POWER ------------ Light Nuclear Core > --- PROPULSION ------- (None) > --- UTILITY ---------- Signal Interpreter Improved Targeting Computer > --- WEAPON ----------- Particle Gun Plasma Cutter > --- INVENTORY -------- Terrain Scanner Datajack [Rating: 10] Favorites ----------- Power Light Nuclear Core Power Core Light Nuclear Core Propulsion None Utility Improved Targeting Computer Device ECM Suite Processor Improved Targeting Computer Weapon EM Pulse Gun Energy Gun EM Pulse Gun Special Weapon Plasma Cutter Build | -11 -10 -10 ------- Run | Yrd Mat Min Slots Evolved 3 | 2 1 . Power . | . . . Propulsion 1 | 1 . . Utility 1 | 1 . . Weapon 1 | . 1 . Parts Attached 16 | 1 13 2 Power 1 | . . 1 Engine . | . . . Core 1 | . . 1 Reactor . | . . . Propulsion . | . . . Treads . | . . . Leg . | . . . Wheel . | . . . Hover . | . . . Flight . | . . . Utility 5 | . 5 . Device 1 | . 1 . Storage . | . . . Processor 4 | . 4 . Hackware . | . . . Protection . | . . . Artifact . | . . . Weapon 10 | 1 8 1 Energy Gun 6 | 1 4 1 Energy Cannon . | . . . Ballistic Gun . | . . . Ballistic Cannon . | . . . Launcher . | . . . Special Weapon 4 | . 4 . Impact Weapon . | . . . Slashing Weapon . | . . . Piercing Weapon . | . . . Special Melee Weapon . | . . . Unidentified Prototypes . | . . . Parts Lost . | . . . Power . | . . . Propulsion . | . . . Utility . | . . . Weapon . | . . . Highest Loss Streak . | . . . To Critical Strikes . | . . . Average Slot Usage (%) 51 | . 50 55 Processor 29 | . 29 28 Energy Gun 14 | . 16 4 Special Weapon 6 | . 3 21 Naked Turns . | . . . Heaviest Build 4 | 2 4 4 Greatest Support 8 | 8 8 8 Greatest Overweight (x) . | . . . Average Overweight (x) . | . . . Largest Inventory Capacity 2 | 1 2 2 Average Capacity 1 | 1 1 2 Most Carried 2 | 1 2 2 Average Carried 1 | . 1 2 Final Capacity 2 | 1 2 2 Final Carried 2 | 1 2 2 Class Distribution -------------------- 100% | Hacker-Mutant Dominant Class ---------------- Hacker-Mutant | -10/Materials Hacker-Mutant | -10/Mines Resources | -11 -10 -10 ----------- Run | Yrd Mat Min Matter Collected 367 | 210 117 40 Remotely . | . . . Salvage Created 915 | . 729 186 Parts 60 | . 51 9 Haulers Intercepted 1 | . 1 . Recyclers Shooed 1 | . 1 . Parts Field Recycled . | . . . Retrieved Matter . | . . . Parts Self-Destructed . | . . . Prevented . | . . . Kills | -11 -10 -10 ------- Run | Yrd Mat Min Combat Hostiles Destroyed 17 | . 14 3 Guns 13 | . 12 1 Cannons 2 | . . 2 AOE 2 | . 2 . Classes Destroyed 8 | . 7 1 Worker 4 | . 3 1 Builder 2 | . 2 . Hauler 1 | . 1 . Recycler 2 | . 2 . Watcher 3 | . 3 . Swarmer 6 | . 6 . Grunt 10 | . 8 2 Demolisher 1 | . . 1 Best Kill Streak 6 | . 6 2 Combat Bots Only 5 | . 5 2 Max Kills in Single Turn 1 | . 1 1 Gunslinging . | . . . Exploded 1 | . 1 . Melee . | . . . Uniques/NPCs Destroyed . | . . . Combat | -11 -10 -10 -------- Run | Yrd Mat Min Hostile Shots Fired 98 | . 71 27 Missed 27 | . 24 3 Damage Taken 907 | . 399 508 Core 804 | . 345 459 Absorbed by Shields . | . . . Redirected to Core 320 | . 157 163 Ignored by Resistances 338 | . 149 189 Regen/Repaired (Parts) 25 | . 25 . Core Remaining (%) 100 | 100 . . Volleys Fired 83 | . 68 15 Largest 2 | . 2 2 Hottest 120 | . 80 120 Shots Fired 110 | . 88 22 Gun 84 | . 78 6 Cannon . | . . . Launcher . | . . . Special 26 | . 10 16 Kinetic . | . . . Thermal 42 | . 20 22 Explosive . | . . . Electromagnetic 68 | . 68 . Robot Hit Streak 45 | . 45 12 Robot Miss Streak 1 | . 1 1 Penetration Max . | . . . Secondary Targets 1 | . 1 . Max Gunslinging Chain 1 | . 1 . Shots Hit Robots 90 | . 73 17 Core Hits 46 | . 35 11 Critical Kills . | . . . Critical Parts Destroyed . | . . . Critical Strikes 2 | . 2 . Corrupt 1 | . 1 . Sever 1 | . 1 . Melee Attacks . | . . . Impact . | . . . Slashing . | . . . Piercing . | . . . Sneak Attacks . | . . . Combat Hostiles . | . . . Follow-up Attacks . | . . . Damage Inflicted 1620 | . 1370 250 Guns 1038 | . 948 90 Cannons . | . . . Explosions 348 | . 348 . Melee . | . . . Ramming . | . . . Kinetic . | . . . Thermal 776 | . 526 250 Explosive . | . . . Electromagnetic 844 | . 844 . Impact . | . . . Slashing . | . . . Piercing . | . . . Highest Corruption 1 | . 1 1 Average Corruption 1 | . 1 1 Corruption Purged . | . . . Corruption Blocked . | . . . Effects 3 | . 2 1 Message Errors 1 | . 1 . Matter Fused 1 | . 1 . Parts Rejected 1 | . . 1 Overload Shots . | . . . Overflow Damage 32 | . 14 18 Projectiles 18 | . . 18 Explosions 14 | . 14 . Melee . | . . . Knockbacks . | . . . Impact . | . . . Kinetic . | . . . Secondary . | . . . Self-Inflicted Damage . | . . . Shots . | . . . Rammed . | . . . Targets Rammed . | . . . Kicked . | . . . Crushed . | . . . Highest Temperature 130 | . 130 56 Average Temperature 31 | . 34 21 Received Heat Transfer 312 | . 237 75 Siege Activations . | . . . Robots Corrupted . | . . . Combat Hostiles . | . . . Parts Fried 3 | . 3 . Impact Corruptions . | . . . Robots Melted . | . . . Combat Hostiles . | . . . Parts Melted 1 | . 1 . Heat Transferred 1702 | . 1034 668 Parts Sabotaged . | . . . Parts Stolen . | . . . Parts Stripped . | . . . Power Chain Reactions 7 | . 7 . Alert | -11 -10 -10 ------- Run | Yrd Mat Min Peak Influence 346 | . 346 211 Initial 109 | . . 109 Average 221 | . 242 147 Maximum Alert Level 1 | . 1 1 Low Security (%) 39 | 100 26 97 Level 1 60 | . 73 2 Level 2 . | . . . Level 3 . | . . . Level 4 . | . . . Level 5 . | . . . High Security . | . . . Max Security . | . . . Squads Dispatched 3 | . 3 . Investigation 3 | . 3 . Extermination . | . . . Reinforcement . | . . . Assault . | . . . Garrison . | . . . Intercept . | . . . Searches Triggered . | . . . Construction Impeded . | . . . Haulers Reinforced . | . . . Active Scanning Responses . | . . . Cargo Convoy Interrupts . | . . . Stealth | -11 -10 -10 --------- Run | Yrd Mat Min Distress Signals 1 | . . 1 Communications Jammed . | . . . Distress Signals . | . . . Times Spotted 22 | . 18 4 Peak Tracking Total 4 | . 4 2 Tactical Retreats . | . . . Traps | -11 -10 -10 ------- Run | Yrd Mat Min Traps Triggered 2 | . 2 . Indirectly . | . . . Trap Hack Attempts . | . . . Triggered . | . . . Disarmed 1 | . 1 . Reprogrammed . | . . . Reused . | . . . Traps Extracted . | . . . Installed . | . . . Triggered . | . . . Machines | -11 -10 -10 ---------- Run | Yrd Mat Min Machines Disabled 1 | . 1 . Max in Single Turn 1 | . 1 . Machines Repaired . | . . . Machines Dismantled . | . . . Machines Sabotaged . | . . . Overloaded Fab Kills . | . . . Hacking | -11 -10 -10 --------- Run | Yrd Mat Min Machines Accessed 10 | . 10 . Terminals 7 | . 7 . Fabricators . | . . . Repair Stations 1 | . 1 . Recycling Units 2 | . 2 . Scanalyzers . | . . . Garrison Access . | . . . Total Hacks 30 | . 30 . Successful 25 | . 25 . Failed 5 | . 5 . Catastrophic . | . . . Database Lockouts . | . . . Manual 8 | . 8 . Terminals 23 | . 23 . Fabricators . | . . . Repair Stations 2 | . 2 . Recycling Units 5 | . 5 . Scanalyzers . | . . . Garrison Access . | . . . Terminal Hacks 18 | . 18 . Robot Analysis 3 | . 3 . Prototype ID Bank 1 | . 1 . Level Access Points 1 | . 1 . Branch Access Points 1 | . 1 . Emergency Access Points 1 | . 1 . Terminal Index 1 | . 1 . Alert Level 1 | . 1 . Locate Traps 3 | . 3 . Disarm Traps 1 | . 1 . Patrol Status 1 | . 1 . Hauler Manifests 1 | . 1 . Registered Components 1 | . 1 . Registered Prototypes 1 | . 1 . Zone Layout 1 | . 1 . Fabricator Hacks . | . . . Repair Station Hacks 2 | . 2 . Scan Component 1 | . 1 . Repair 1 | . 1 . Recycling Unit Hacks 3 | . 3 . Process 1 | . 1 . Report Inventory 2 | . 2 . Scanalyzer . | . . . Garrison Access Hacks . | . . . Unauthorized Hacks 2 | . 2 . Terminals . | . . . Fabricators . | . . . Repair Stations . | . . . Recycling Units 2 | . 2 . Tunnel 2 | . 2 . Scanalyzers . | . . . Garrison Access . | . . . Data Cores Recovered . | . . . Used . | . . . Hacking Detections 7 | . 7 . Full Trace Events 3 | . 3 . Feedback Events . | . . . Feedback Blocked . | . . . Robot Schematics Acquired . | . . . Robots Built . | . . . Authchips . | . . . Time . | . . . Total Robot Build Rating . | . . . Part Schematics Acquired . | . . . Parts Built . | . . . Authchips . | . . . Time . | . . . Total Part Build Rating . | . . . Parts Repaired 1 | . 1 . Time 26 | . 26 . Parts Recycled . | . . . Recycled Matter 131 | . 131 . Retrieved Matter . | . . . Retrieved Components . | . . . Parts Scanalyzed . | . . . Part Schematics Acquired . | . . . Parts Damaged . | . . . Bothacking | -11 -10 -10 ------------ Run | Yrd Mat Min Used RIF Installer . | . . . Robots Hacked . | . . . Non-combat . | . . . Combat . | . . . Robot Hacks Applied . | . . . Relay Couplers Released . | . . . Fabnet Peak Effective % . | . . . Robots Rewired . | . . . Allies Hacked . | . . . Hacks Repelled . | . . . Allies | -11 -10 -10 -------- Run | Yrd Mat Min Total Allies . | . . . Largest Group . | . . . Highest-Rated Group . | . . . Highest-Rated Ally . | . . . Total Orders . | . . . Ally Attacks . | . . . Total Damage . | . . . Kills . | . . . Allies Corrupted . | . . . Allies Melted . | . . . Intel | -11 -10 -10 ------- Run | Yrd Mat Min Robot Analysis Total 3 | . 3 . Derelict Logs Recovered 1 | . . 1 Drone Launches . | . . . Drone Recoveries . | . . . Exploration | -11 -10 -10 ------------- Run | Yrd Mat Min Turns Passed 924 | 22 753 149 Spaces Moved 1238 | 40 1036 162 Core 1238 | 40 1036 162 Treads . | . . . Legs . | . . . Wheels . | . . . Hover . | . . . Flight . | . . . Fastest Speed 50 | 50 50 50 Average Speed 50 | 50 50 50 Slowest Speed 50 | 50 50 50 Overloaded Moves . | . . . Propulsion Burnouts . | . . . Robots Hopped . | . . . Cave-ins Triggered . | . . . Exploration Rate (%) 47 | 3 96 44 Regions Visited 2 Branch Regions 1 Pre-discovered Areas 2 | . 2 . Known Exits Taken 1 | . 1 . Unknown Exits Taken 1 | 1 . . Scrap Searched . | . . . Spaces Dug . | . . . Terrain Destroyed 29 | . 27 2 Melee . | . . . Projectile 2 | . . 2 AOE 27 | . 27 . Terrain Rammed . | . . . Walls Destroyed . | . . . Machines Disabled . | . . . Actions | -11 -10 -10 --------- Run | Yrd Mat Min Total 1398 | 41 1170 187 Wait 38 | . 33 5 Move 1236 | 39 1035 162 Hop . | . . . Pick Up 4 | 1 3 . Fast Attach 15 | 1 12 2 Attach 1 | . 1 . Detach . | . . . Swap . | . . . Drop 9 | . 8 1 Fire 83 | . 68 15 Melee . | . . . Ram . | . . . Kick . | . . . Crush . | . . . Escape Stasis . | . . . Rewire 2 | . . 2 Trap . | . . . Miscellaneous 10 | . 10 . Route ------- -11/Scrapyard -10/Materials (discovered 5 exits: *Mat x3 / *Min x2) -10/Mines History --------- Turn | Location | Event 1 | -11/Scrapyard | Upgraded with Propulsion slot (x1) 1 | -11/Scrapyard | Upgraded with Utility slot (x1) 3 | -11/Scrapyard | Discovered new exit (range 15) 23 | -11/Scrapyard | Entered Materials 151 | -10/Materials | Identified exit to Materials 168 | -10/Materials | Identified exit to Mines 308 | -10/Materials | Build established: Hacker-Mutant 365 | -10/Materials | Repaired EM Pulse Gun 432 | -10/Materials | Reached level 2 434 | -10/Materials | Upgraded with Weapon slot (x1) 776 | -10/Materials | Entered Mines 794 | -10/Mines | Learned 8 Materials zone layouts 887 | -10/Mines | Assembled infested the area 912 | -10/Mines | Core integrity fell below 50% 918 | -10/Mines | Core integrity fell below 20% 922 | -10/Mines | Reached level 3 925 | -10/Mines | Destroyed by D-53 Grenadier with Mini Grenade Launcher Last Messages --------------- 00887_ ALERT: Infestation in the mines, dispatching Demolisher response squad. 00889_ K-01 Serf collects debris. 00905_ C-30 ARC bursts open, deploying its payload. 00905_ D-53 Grenadier unfolds itself. 00913_ The unstable cave ceiling collapses. 00913_ U-05 Engineer lays Concrete. 00914_ U-05 Engineer builds a Wall. 00918_ The unstable cave ceiling collapses. 00918_ Destroyed Lgt. Deuterium Engine. 00918_ U-05 Engineer lays Concrete. 00919_ D-53 Grenadier heat spikes uncontrollably. 00919_ D-53 Grenadier overheating. 00919_ U-05 Engineer destroyed. 00919_ K-01 Serf collects debris. 00920_ D-53 Grenadier overheating. 00922_ Reached level 3. 00922_ D-53 Grenadier destroyed. 00922_ K-01 Serf collects debris. 00923_ The unstable cave ceiling collapses. Map ----- +----------------------------------------------------+ | ?????????????????????????????????? | | ?????????????????????????????????? | | ?????????????????????????????????? | | ?????????????????????????????????? | | ?????????????????????????????????? | | ?????????????????????????????????? | | ?????????????????????????????????? | | ?????????????????????????????????? | | ?????????????????????????????????? | | ????????????????x ???????????????? | | ????????????????? ## ????????????? | | ???????????????? ?????????????? | | ???????????????? ?????????????? | | ???????????????? ??????????????? | | ???????????????? ??????????????? | | ??????????????? ???????????????? | | ??????????????# ???????????????? | | ?????????????? #???????????????? | | ?????????????? #???????????????? | | ???###???????? #???????????????? | | ??## #####??? "#???????????????? | | ??# ## #### %#???????????????? | | ??# # #????????????????? | | ??# #????????????????? | | ??# #?????????????????? | | ??## @ d ##?????????????????? | | ?## ##?????????????????? | | ?# ####??????????????? | | ?# ##?????????????? | | ?# #?????????????? | | ?# # # # k #?????????????? | | ?# # # #?????????????? | | ?## ### ##?????????????? | | ??## #### ##??????????????? | | ???######### ##???####????????? | | ?????????## ##?### ##???????? | | ?????##### ### x ######??? | | ????## ## x | | ???## ###??????? | | ??## ###????????? | | ??# ##??????????? | | ??# #####???????????? | | ?## ##???????????????? | | ?# ######????????????????? | | ?# ###?????????????????????? | | ?## ####???????????????????????? | | ??## #??????????????????????????? | | ???# ###????????????????????????? | | ???# =#%###### """"????????????## | | ???#!%|%%* """"???????????## | +----------------------------------------------------+ Best States ------------- Heat Dissipation 25 Energy Generation 10 Energy Capacity 100 Matter Stores 300 Matter Capacity 300 Sight Range 17 Robot Scan Range 20 Terrain Scan Density 110 ECM Strength 1 Resistance: KI 25 Resistance: TH 25 Resistance: EX 25 Resistance: EM 20 Resistance: I 20 Resistance: S 20 Resistance: P 20 Evasion (%) 50 Targeting Accuracy 12 Offensive Hacking 20 Item Schematics ----------------- None Robot Schematics ------------------ None Fabricated ------------ Nothing Alien Tech Used ----------------- None Achievements -------------- None Challenges ------------ None RPGLIKE | -11 -10 -10 --------- Run | Yrd Mat Min Levels Raised 2 | . 1 1 XP Earned 7065 | 4000 2165 900 XP Spent 5475 | 3850 1625 . Upgrades 24 | 19 5 . Propulsion Slot 1 | 1 . . Utility Slot 1 | 1 . . Weapon Slot 1 | . 1 . Energy Generation 1 | 1 . . Mass Support 1 | 1 . . Inventory Capacity 2 | 1 1 . Sight Range 1 | . 1 . Sensor Range 10 | 8 2 . Terrain Scan Density 1 | 1 . . Hack Attack % 2 | 2 . . KI Resistance % 1 | 1 . . TH Resistance % 1 | 1 . . EX Resistance % 1 | 1 . . Protomatter Created 178 | . 178 . Integrity Restored 201 | . 201 . Core 201 | . 201 . Protomatter Decayed 111 | . 111 . Game ------ Seed SwarmSegregatorCharge Manual? 0 Play Time 00:22:10 Cumulative 12.5 hours Start 2024.04.07 @ 12:42:45 End 2024.04.07 @ 13:03:12 Sessions 1 Manual Loads 0 Difficulty Adventurer Special Mode Winter2019/RPGLIKE Game No. 9 Rogue 0 Adventurer 9 Explorer 0 Win Type - Total 3 Types 3/0/0/0/0/0/0/0/0 Lore% 14 Gallery% 23 Achievement% 28 Wizard Run 0 Options --------- Layout 0 ASCII 0 Keyboard 0 Movement Numpad Keybinds 0 Fullscreen 2 Font 36/Smallcaps Map View 76x50 Zoom Use 0% Tactical HUD 1 Map Filters NONE Filters NONE Steam 1 RUN: 868226e0-3468-41de-892f-50374f7d3b70